[Event "*** Titled Tuesday Blitz"]
[Site "Chess.com"]
[Date "2021.02.09"]
[Round "9"]
[White "GregShahade"]
[Black "kirillshevchenko"]
[Result "0-1"]
[WhiteElo "2695"]
[BlackElo "2818"]
[TimeControl "180+1"]
[EndTime "11:46:30 PST"]
[Termination "kirillshevchenko won by checkmate"]

1. e4 {[%clk 0:03:00.9]} 1... c5 {[%clk 0:02:43.8]} 2. Nf3 {[%clk 0:03:00.6]}
2... d6 {[%clk 0:02:43.1]} 3. d4 {[%clk 0:03:00.7]} 3... cxd4 {[%clk 0:02:42.2]}
4. Nxd4 {[%clk 0:03:01.6]} 4... Nf6 {[%clk 0:02:42.1]} 5. Nc3 {[%clk 0:03:01.8]}
5... Nc6 {[%clk 0:02:42.1]} 6. f3 {[%clk 0:03:01.3]} 6... e5 {[%clk 0:02:41.6]}
7. Nb3 {[%clk 0:03:01.6]} 7... Be7 {[%clk 0:02:39.4]} 8. Be3 {[%clk 0:03:01.9]}
8... Be6 {[%clk 0:02:22.9]} 9. Nd5 {[%clk 0:03:01.8]} 9... O-O {[%clk
0:02:22.8]} 10. Qd2 {[%clk 0:02:57.7]} 10... Bxd5 {[%clk 0:01:43.2]} 11. exd5
{[%clk 0:02:56.6]} 11... Nb8 {[%clk 0:01:44.1]} 12. g4 {[%clk 0:02:56.7]} 12...
a5 {[%clk 0:01:33.8]} 13. a4 {[%clk 0:02:46.3]} 13... Na6 {[%clk 0:01:33.6]} 14.
O-O-O {[%clk 0:02:40.2]} 14... Nb4 {[%clk 0:01:32.1]} 15. Kb1 {[%clk 0:02:05.8]}
15... Nfxd5 {[%clk 0:01:25.8]} 16. c3 {[%clk 0:02:03.5]} 16... Nxe3 {[%clk
0:01:25.8]} 17. Qxe3 {[%clk 0:02:03.8]} 17... Bg5 {[%clk 0:00:56.2]} 18. Qe4
{[%clk 0:01:55.7]} 18... Nc6 {[%clk 0:00:54.3]} 19. Bc4 {[%clk 0:01:53.3]} 19...
Bf4 {[%clk 0:00:48.2]} 20. Na1 {[%clk 0:01:27]} 20... Qc7 {[%clk 0:00:45.6]} 21.
Nc2 {[%clk 0:01:25.8]} 21... Ne7 {[%clk 0:00:46.1]} 22. Na3 {[%clk 0:01:22.3]}
22... Rad8 {[%clk 0:00:43.4]} 23. Nb5 {[%clk 0:01:18.9]} 23... Qc5 {[%clk
0:00:43.6]} 24. Bd5 {[%clk 0:01:17.5]} 24... b6 {[%clk 0:00:37.6]} 25. h4 {[%clk
0:01:04]} 25... Kh8 {[%clk 0:00:36.9]} 26. g5 {[%clk 0:01:00.9]} 26... f5 {[%clk
0:00:34]} 27. Qc4 {[%clk 0:00:36.7]} 27... Qxc4 {[%clk 0:00:31]} 28. Bxc4 {[%clk
0:00:37.6]} 28... d5 {[%clk 0:00:31.9]} 29. Be2 {[%clk 0:00:37.5]} 29... Be3
{[%clk 0:00:22.3]} 30. Rhe1 {[%clk 0:00:28.9]} 30... Bf2 {[%clk 0:00:22.1]} 31.
Rh1 {[%clk 0:00:27.7]} 31... Ng6 {[%clk 0:00:21.9]} 32. Nc7 {[%clk 0:00:26.4]}
32... Nf4 {[%clk 0:00:21.6]} 33. Bb5 {[%clk 0:00:25.5]} 33... Rd6 {[%clk
0:00:21]} 34. Ne8 {[%clk 0:00:20.3]} 34... Re6 {[%clk 0:00:18.8]} 35. Nc7 {[%clk
0:00:19.8]} 35... Rd6 {[%clk 0:00:17.6]} 36. Ne8 {[%clk 0:00:20.1]} 36... Rd8
{[%clk 0:00:18]} 37. Nc7 {[%clk 0:00:20.4]} 37... d4 {[%clk 0:00:17]} 38. cxd4
{[%clk 0:00:16.4]} 38... exd4 {[%clk 0:00:17.4]} 39. Rh2 {[%clk 0:00:15.9]}
39... Be3 {[%clk 0:00:16.1]} 40. Rc2 {[%clk 0:00:16]} 40... Rc8 {[%clk
0:00:13.3]} 41. Rc6 {[%clk 0:00:15.4]} 41... d3 {[%clk 0:00:07.4]} 42. Na6
{[%clk 0:00:07.2]} 42... Rxc6 {[%clk 0:00:07]} 43. Bxc6 {[%clk 0:00:08.1]} 43...
Rc8 {[%clk 0:00:05.6]} 44. Bd7 {[%clk 0:00:08.1]} 44... Rc4 {[%clk 0:00:04.4]}
45. Bxf5 {[%clk 0:00:07.4]} 45... d2 {[%clk 0:00:04.9]} 46. Bc2 {[%clk
0:00:06.3]} 46... g6 {[%clk 0:00:05]} 47. Nb8 {[%clk 0:00:06]} 47... Kg7 {[%clk
0:00:04.3]} 48. Nd7 {[%clk 0:00:06.6]} 48... Rc7 {[%clk 0:00:03.9]} 49. Ne5
{[%clk 0:00:07.1]} 49... Re7 {[%clk 0:00:03.4]} 50. Nc4 {[%clk 0:00:07.7]} 50...
Ng2 {[%clk 0:00:03]} 51. Nxd2 {[%clk 0:00:07.1]} 51... Rd7 {[%clk 0:00:02.4]}
52. Ne4 {[%clk 0:00:06.9]} 52... Rxd1+ {[%clk 0:00:02.9]} 53. Bxd1 {[%clk
0:00:07.2]} 53... Nxh4 {[%clk 0:00:03]} 54. Kc2 {[%clk 0:00:07.7]} 54... Nf5
{[%clk 0:00:03]} 55. Kd3 {[%clk 0:00:08]} 55... Bf4 {[%clk 0:00:02.7]} 56. Kc4
{[%clk 0:00:08.2]} 56... Ne3+ {[%clk 0:00:01.9]} 57. Kb5 {[%clk 0:00:07.7]}
57... Nxd1 {[%clk 0:00:02.8]} 58. Kxb6 {[%clk 0:00:08.4]} 58... Nxb2 {[%clk
0:00:03.1]} 59. Kxa5 {[%clk 0:00:08.6]} 59... Kf7 {[%clk 0:00:03]} 60. Kb5
{[%clk 0:00:08.4]} 60... Nxa4 {[%clk 0:00:01.9]} 61. Kxa4 {[%clk 0:00:08.2]}
61... Ke6 {[%clk 0:00:02.8]} 62. Nf6 {[%clk 0:00:06.6]} 62... h5 {[%clk
0:00:02.9]} 63. Ne4 {[%clk 0:00:05]} 63... h4 {[%clk 0:00:02.6]} 64. Kb3 {[%clk
0:00:04.7]} 64... h3 {[%clk 0:00:03.1]} 65. Kc4 {[%clk 0:00:04.9]} 65... Kf5
{[%clk 0:00:02]} 66. Kd3 {[%clk 0:00:04.2]} 66... h2 {[%clk 0:00:02.4]} 67. Nf2
{[%clk 0:00:04.5]} 67... Kxg5 {[%clk 0:00:02.9]} 68. Ke2 {[%clk 0:00:04.1]}
68... Kh4 {[%clk 0:00:03.3]} 69. Kf1 {[%clk 0:00:04.4]} 69... Kg3 {[%clk
0:00:02.8]} 70. Nh1+ {[%clk 0:00:03.8]} 70... Kxf3 {[%clk 0:00:03]} 71. Nf2
{[%clk 0:00:04.7]} 71... g5 {[%clk 0:00:02.7]} 72. Nh1 {[%clk 0:00:03.6]} 72...
Be3 {[%clk 0:00:03]} 73. Ke1 {[%clk 0:00:02.9]} 73... Kg2 {[%clk 0:00:03.5]} 74.
Ke2 {[%clk 0:00:03.3]} 74... Kxh1 {[%clk 0:00:03.6]} 75. Kf1 {[%clk 0:00:03.1]}
75... g4 {[%clk 0:00:03.9]} 76. Ke2 {[%clk 0:00:03.3]} 76... Kg2 {[%clk
0:00:04.5]} 77. Kxe3 {[%clk 0:00:04.2]} 77... h1=Q {[%clk 0:00:05]} 78. Kf4
{[%clk 0:00:05.1]} 78... Qh3 {[%clk 0:00:05.7]} 79. Kg5 {[%clk 0:00:05.9]} 79...
Qf3 {[%clk 0:00:06.5]} 80. Kh4 {[%clk 0:00:06.2]} 80... g3 {[%clk 0:00:07]} 81.
Kg5 {[%clk 0:00:06.4]} 81... Kf2 {[%clk 0:00:07.7]} 82. Kh4 {[%clk 0:00:07.3]}
82... g2 {[%clk 0:00:08]} 83. Kg5 {[%clk 0:00:07.8]} 83... g1=Q+ {[%clk
0:00:08.5]} 84. Kh4 {[%clk 0:00:08.7]} 84... Qfh1# {[%clk 0:00:08.9]} 0-1

[Event "*** Titled Tuesday Blitz"]
[Site "Chess.com"]
[Date "2021.02.09"]
[Round "9"]
[White "enriquetejedor"]
[Black "alexrustemov"]
[Result "1/2-1/2"]
[WhiteElo "2546"]
[BlackElo "2743"]
[TimeControl "180+1"]
[EndTime "11:46:33 PST"]
[Termination "Game drawn by repetition"]

1. d4 {[%clk 0:02:38.9]} 1... g6 {[%clk 0:02:58.3]} 2. e4 {[%clk 0:02:37.8]}
2... Bg7 {[%clk 0:02:57.9]} 3. h4 {[%clk 0:02:37.7]} 3... d5 {[%clk 0:02:53.7]}
4. exd5 {[%clk 0:02:36]} 4... Nf6 {[%clk 0:02:51]} 5. h5 {[%clk 0:02:34.5]} 5...
Nxh5 {[%clk 0:02:47.9]} 6. Rxh5 {[%clk 0:02:34]} 6... gxh5 {[%clk 0:02:47.5]} 7.
Qxh5 {[%clk 0:02:33.6]} 7... Nd7 {[%clk 0:02:36.3]} 8. Nc3 {[%clk 0:02:27.7]}
8... Nf6 {[%clk 0:02:35]} 9. Qg5 {[%clk 0:02:27.1]} 9... O-O {[%clk 0:02:28.2]}
10. Bd3 {[%clk 0:02:24.3]} 10... e6 {[%clk 0:02:19.7]} 11. dxe6 {[%clk
0:02:13.7]} 11... Qxd4 {[%clk 0:02:10.6]} 12. Nf3 {[%clk 0:02:11.3]} 12... Qg4
{[%clk 0:02:07.9]} 13. exf7+ {[%clk 0:02:00.1]} 13... Kh8 {[%clk 0:01:53.6]} 14.
Qxg4 {[%clk 0:01:59.4]} 14... Bxg4 {[%clk 0:01:45.9]} 15. Ng5 {[%clk 0:01:41.9]}
15... h6 {[%clk 0:01:40.1]} 16. f3 {[%clk 0:01:41.1]} 16... Bd7 {[%clk
0:01:26.5]} 17. Nge4 {[%clk 0:01:29]} 17... Nxe4 {[%clk 0:01:26]} 18. Bxe4
{[%clk 0:01:16.2]} 18... c6 {[%clk 0:01:17.5]} 19. Be3 {[%clk 0:01:12.7]} 19...
Rxf7 {[%clk 0:01:17.1]} 20. O-O-O {[%clk 0:01:12.5]} 20... Bf5 {[%clk
0:01:14.7]} 21. Bxf5 {[%clk 0:00:58.6]} 21... Rxf5 {[%clk 0:01:15.6]} 22. Ne4
{[%clk 0:00:58.5]} 22... Rd5 {[%clk 0:01:11.1]} 23. Rh1 {[%clk 0:00:43.2]} 23...
Kh7 {[%clk 0:01:08.1]} 24. Rh4 {[%clk 0:00:23.6]} 24... b6 {[%clk 0:01:03.3]}
25. c3 {[%clk 0:00:22.5]} 25... Kg6 {[%clk 0:00:58.7]} 26. Rg4+ {[%clk 0:00:22]}
26... Kf7 {[%clk 0:00:57.6]} 27. Kc2 {[%clk 0:00:22.9]} 27... Re8 {[%clk
0:00:56.6]} 28. Rf4+ {[%clk 0:00:23.1]} 28... Kg6 {[%clk 0:00:53.8]} 29. Rg4+
{[%clk 0:00:24]} 29... Kh7 {[%clk 0:00:53.6]} 30. Bc1 {[%clk 0:00:24]} 30... Rh5
{[%clk 0:00:51.7]} 31. a4 {[%clk 0:00:19.9]} 31... Rh1 {[%clk 0:00:50.1]} 32. a5
{[%clk 0:00:19.2]} 32... c5 {[%clk 0:00:45.8]} 33. axb6 {[%clk 0:00:19.1]} 33...
axb6 {[%clk 0:00:46.7]} 34. Ng3 {[%clk 0:00:16.4]} 34... Rg1 {[%clk 0:00:44.6]}
35. Ne4 {[%clk 0:00:10.5]} 35... Re5 {[%clk 0:00:37.2]} 36. Bf4 {[%clk
0:00:10.2]} 36... Rf5 {[%clk 0:00:31.7]} 37. Bc7 {[%clk 0:00:09.7]} 37... b5
{[%clk 0:00:31.2]} 38. Nd6 {[%clk 0:00:10]} 38... Rg5 {[%clk 0:00:28.2]} 39.
Rxg5 {[%clk 0:00:06.3]} 39... hxg5 {[%clk 0:00:29.1]} 40. g4 {[%clk 0:00:05.7]}
40... b4 {[%clk 0:00:27.1]} 41. Ne4 {[%clk 0:00:04.5]} 41... Rg2+ {[%clk
0:00:26.8]} 42. Kb3 {[%clk 0:00:02.6]} 42... Kg6 {[%clk 0:00:27.1]} 43. cxb4
{[%clk 0:00:02.8]} 43... Rxb2+ {[%clk 0:00:25.5]} 44. Kc4 {[%clk 0:00:03.1]}
44... cxb4 {[%clk 0:00:25.5]} 45. Bd6 {[%clk 0:00:02.3]} 45... b3 {[%clk
0:00:24.9]} 46. Ba3 {[%clk 0:00:02.4]} 46... Rb1 {[%clk 0:00:21.8]} 47. Nd2
{[%clk 0:00:02.5]} 47... Ra1 {[%clk 0:00:16.5]} 48. Kxb3 {[%clk 0:00:02.7]}
48... Be5 {[%clk 0:00:12.2]} 49. Bb4 {[%clk 0:00:03]} 49... Bf4 {[%clk
0:00:12.2]} 50. Ne4 {[%clk 0:00:02.4]} 50... Rf1 {[%clk 0:00:11.5]} 51. Kc4
{[%clk 0:00:02.2]} 51... Rxf3 {[%clk 0:00:11.3]} 52. Kd4 {[%clk 0:00:02]} 52...
Rb3 {[%clk 0:00:11]} 53. Bc5 {[%clk 0:00:01.9]} 53... Be3+ {[%clk 0:00:11]} 54.
Kc4 {[%clk 0:00:02.4]} 54... Bxc5 {[%clk 0:00:08.2]} 55. Kxb3 {[%clk 0:00:02.7]}
55... Be7 {[%clk 0:00:08.4]} 56. Kc4 {[%clk 0:00:03]} 56... Kf7 {[%clk
0:00:09.3]} 57. Kd5 {[%clk 0:00:03.3]} 57... Kg6 {[%clk 0:00:09.6]} 58. Ke5
{[%clk 0:00:03.7]} 58... Bd8 {[%clk 0:00:10]} 59. Ke6 {[%clk 0:00:04]} 59... Bc7
{[%clk 0:00:10.4]} 60. Nc3 {[%clk 0:00:03.8]} 60... Bf4 {[%clk 0:00:10.9]} 61.
Nd5 {[%clk 0:00:04.7]} 61... Bc1 {[%clk 0:00:11.1]} 62. Ne7+ {[%clk 0:00:05.1]}
62... Kg7 {[%clk 0:00:10.9]} 63. Kf5 {[%clk 0:00:05.1]} 63... Kf7 {[%clk
0:00:10.7]} 64. Ng6 {[%clk 0:00:05.1]} 64... Kg7 {[%clk 0:00:10.6]} 65. Ne5
{[%clk 0:00:05.2]} 65... Kh6 {[%clk 0:00:10.4]} 66. Nd3 {[%clk 0:00:03]} 66...
Bd2 {[%clk 0:00:08.6]} 67. Nf2 {[%clk 0:00:03.2]} 67... Kh7 {[%clk 0:00:07.2]}
68. Ne4 {[%clk 0:00:04.1]} 68... Bc1 {[%clk 0:00:07.7]} 69. Kf6 {[%clk 0:00:04]}
69... Kh6 {[%clk 0:00:07.4]} 70. Ng3 {[%clk 0:00:03.7]} 70... Kh7 {[%clk
0:00:07.3]} 71. Nf5 {[%clk 0:00:03.3]} 71... Kg8 {[%clk 0:00:06.7]} 72. Kg6
{[%clk 0:00:03]} 72... Kf8 {[%clk 0:00:07.2]} 73. Kf6 {[%clk 0:00:03.4]} 73...
Kg8 {[%clk 0:00:07.5]} 74. Ne7+ {[%clk 0:00:03.2]} 74... Kh7 {[%clk 0:00:07.6]}
75. Nf5 {[%clk 0:00:02.7]} 75... Kg8 {[%clk 0:00:07.5]} 1/2-1/2

[Event "*** Titled Tuesday Blitz"]
[Site "Chess.com"]
[Date "2021.02.09"]
[Round "9"]
[White "AttilaTurzo"]
[Black "PavelShkapenko"]
[Result "1/2-1/2"]
[WhiteElo "2536"]
[BlackElo "2687"]
[TimeControl "180+1"]
[EndTime "11:46:34 PST"]
[Termination "Game drawn by repetition"]

1. d4 {[%clk 0:03:00.9]} 1... Nf6 {[%clk 0:02:59.5]} 2. Nf3 {[%clk 0:03:01.3]}
2... e6 {[%clk 0:02:59.3]} 3. Bf4 {[%clk 0:03:01.1]} 3... b6 {[%clk 0:02:59]} 4.
e3 {[%clk 0:03:00.5]} 4... Bb7 {[%clk 0:02:59.1]} 5. Nbd2 {[%clk 0:02:59.6]}
5... Be7 {[%clk 0:02:59.1]} 6. h3 {[%clk 0:02:58.5]} 6... c5 {[%clk 0:02:58.2]}
7. a4 {[%clk 0:02:56]} 7... a6 {[%clk 0:02:57.9]} 8. Bd3 {[%clk 0:02:55.1]} 8...
O-O {[%clk 0:02:57.3]} 9. O-O {[%clk 0:02:54.7]} 9... cxd4 {[%clk 0:02:57.5]}
10. exd4 {[%clk 0:02:54.4]} 10... d6 {[%clk 0:02:58.1]} 11. Nc4 {[%clk
0:02:51.7]} 11... Qc7 {[%clk 0:02:57.2]} 12. a5 {[%clk 0:02:47.2]} 12... b5
{[%clk 0:02:57.1]} 13. Nb6 {[%clk 0:02:46.6]} 13... Ra7 {[%clk 0:02:57.6]} 14.
b3 {[%clk 0:02:42]} 14... Bxf3 {[%clk 0:02:46.9]} 15. Qxf3 {[%clk 0:02:41.3]}
15... Nc6 {[%clk 0:02:47.5]} 16. c3 {[%clk 0:02:30.2]} 16... Nxa5 {[%clk
0:02:41.2]} 17. Rxa5 {[%clk 0:02:31.1]} 17... Qxb6 {[%clk 0:02:41.5]} 18. Rfa1
{[%clk 0:02:30.4]} 18... b4 {[%clk 0:01:24.1]} 19. Rxa6 {[%clk 0:02:21.2]} 19...
Rxa6 {[%clk 0:01:24.2]} 20. Rxa6 {[%clk 0:02:22.1]} 20... Qb8 {[%clk 0:01:24]}
21. c4 {[%clk 0:02:20.9]} 21... e5 {[%clk 0:01:24.2]} 22. Be3 {[%clk 0:02:13.4]}
22... Rd8 {[%clk 0:01:03.9]} 23. Qc6 {[%clk 0:02:08.7]} 23... Nd7 {[%clk
0:00:59.5]} 24. Bf5 {[%clk 0:01:48]} 24... exd4 {[%clk 0:00:47.9]} 25. Bxd4
{[%clk 0:01:42]} 25... Nc5 {[%clk 0:00:48.2]} 26. Rb6 {[%clk 0:01:32.5]} 26...
Qa7 {[%clk 0:00:48]} 27. g3 {[%clk 0:01:17]} 27... Nxb3 {[%clk 0:00:32.2]} 28.
Be3 {[%clk 0:01:08.9]} 28... Qa1+ {[%clk 0:00:25.5]} 29. Kg2 {[%clk 0:01:08.9]}
29... Nd4 {[%clk 0:00:25.8]} 30. Bxd4 {[%clk 0:00:58.9]} 30... Qxd4 {[%clk
0:00:25.4]} 31. Rxb4 {[%clk 0:00:59.3]} 31... Qc5 {[%clk 0:00:21.8]} 32. Rb6
{[%clk 0:00:50.5]} 32... Qxc6+ {[%clk 0:00:20.9]} 33. Rxc6 {[%clk 0:00:51.4]}
33... g6 {[%clk 0:00:21]} 34. Be4 {[%clk 0:00:51.1]} 34... Kg7 {[%clk
0:00:21.4]} 35. Bd5 {[%clk 0:00:51.3]} 35... Rd7 {[%clk 0:00:20.8]} 36. Ra6
{[%clk 0:00:47.8]} 36... Rc7 {[%clk 0:00:20.5]} 37. h4 {[%clk 0:00:47.8]} 37...
h5 {[%clk 0:00:20.4]} 38. Kf3 {[%clk 0:00:47.2]} 38... Rd7 {[%clk 0:00:20]} 39.
Ke4 {[%clk 0:00:47.2]} 39... Rc7 {[%clk 0:00:20.1]} 40. Kd3 {[%clk 0:00:46.5]}
40... Bf8 {[%clk 0:00:20.1]} 41. f4 {[%clk 0:00:45.4]} 41... Be7 {[%clk
0:00:18.4]} 42. Ke4 {[%clk 0:00:42.9]} 42... f5+ {[%clk 0:00:16.4]} 43. Kd3
{[%clk 0:00:42]} 43... Bf8 {[%clk 0:00:16.9]} 44. Kc3 {[%clk 0:00:40.4]} 44...
Be7 {[%clk 0:00:16.6]} 45. Kb4 {[%clk 0:00:40.4]} 45... Bf8 {[%clk 0:00:16.7]}
46. Kb5 {[%clk 0:00:40.8]} 46... Kf6 {[%clk 0:00:12]} 47. Kb6 {[%clk 0:00:39.1]}
47... Rd7 {[%clk 0:00:12.1]} 48. Ra8 {[%clk 0:00:35.9]} 48... Kg7 {[%clk
0:00:10]} 49. Kc6 {[%clk 0:00:28]} 49... Re7 {[%clk 0:00:10.2]} 50. Ra3 {[%clk
0:00:28]} 50... Re8 {[%clk 0:00:08.2]} 51. Kd7 {[%clk 0:00:20.5]} 51... Re7+
{[%clk 0:00:07.6]} 52. Kc6 {[%clk 0:00:19]} 52... Re8 {[%clk 0:00:07.6]} 53. Rb3
{[%clk 0:00:18.6]} 53... Kf6 {[%clk 0:00:05.1]} 54. Kd7 {[%clk 0:00:18]} 54...
Re7+ {[%clk 0:00:05.1]} 55. Kd8 {[%clk 0:00:18.3]} 55... Re1 {[%clk 0:00:03.7]}
56. Rb7 {[%clk 0:00:17.3]} 56... Be7+ {[%clk 0:00:03.7]} 57. Ke8 {[%clk
0:00:16.5]} 57... Re3 {[%clk 0:00:04.3]} 58. Kd7 {[%clk 0:00:14.9]} 58... Re1
{[%clk 0:00:04.3]} 59. Rb3 {[%clk 0:00:13.1]} 59... Re2 {[%clk 0:00:03.9]} 60.
Kc6 {[%clk 0:00:13.3]} 60... Re1 {[%clk 0:00:03.8]} 61. Ra3 {[%clk 0:00:13.3]}
61... Re2 {[%clk 0:00:03.5]} 62. Kb5 {[%clk 0:00:13.1]} 62... Re1 {[%clk
0:00:03.4]} 63. Kb4 {[%clk 0:00:12.5]} 63... Re2 {[%clk 0:00:03.8]} 64. Rd3
{[%clk 0:00:12.2]} 64... Re1 {[%clk 0:00:04]} 65. Kc3 {[%clk 0:00:12.5]} 65...
Re2 {[%clk 0:00:04.3]} 66. Rf3 {[%clk 0:00:11.7]} 66... Bd8 {[%clk 0:00:03.9]}
67. Kd3 {[%clk 0:00:11.8]} 67... Re7 {[%clk 0:00:04]} 68. Re3 {[%clk 0:00:10]}
68... Rxe3+ {[%clk 0:00:03.5]} 69. Kxe3 {[%clk 0:00:10.9]} 69... Bb6+ {[%clk
0:00:04]} 70. Kf3 {[%clk 0:00:11.8]} 70... Bc5 {[%clk 0:00:04.3]} 71. Bg8 {[%clk
0:00:11.8]} 71... Kg7 {[%clk 0:00:04.2]} 72. Bd5 {[%clk 0:00:12.6]} 72... Kf6
{[%clk 0:00:05]} 73. Bc6 {[%clk 0:00:12.7]} 73... Kg7 {[%clk 0:00:05.3]} 74. Bb5
{[%clk 0:00:13.3]} 74... Kf6 {[%clk 0:00:06.2]} 75. Ba6 {[%clk 0:00:13.5]} 75...
Kg7 {[%clk 0:00:06.7]} 76. Bb7 {[%clk 0:00:13.9]} 76... Kf6 {[%clk 0:00:07.6]}
77. Bd5 {[%clk 0:00:14.8]} 77... Kg7 {[%clk 0:00:08.1]} 78. Bc6 {[%clk
0:00:15.3]} 78... Kf6 {[%clk 0:00:08.6]} 79. Be8 {[%clk 0:00:15.7]} 79... Kg7
{[%clk 0:00:09]} 80. Bd7 {[%clk 0:00:15.5]} 80... Kf6 {[%clk 0:00:09.5]} 81. Bc6
{[%clk 0:00:16]} 81... Kg7 {[%clk 0:00:09.8]} 82. Bd5 {[%clk 0:00:16.4]} 82...
Kf6 {[%clk 0:00:10.2]} 1/2-1/2

[Event "*** Titled Tuesday Blitz"]
[Site "Chess.com"]
[Date "2021.02.09"]
[Round "9"]
[White "TimofeevAr"]
[Black "ChessWarrior7197"]
[Result "1-0"]
[WhiteElo "2888"]
[BlackElo "2952"]
[TimeControl "180+1"]
[EndTime "11:46:50 PST"]
[Termination "TimofeevAr won by checkmate"]

1. c4 {[%clk 0:03:00.9]} 1... e6 {[%clk 0:02:59.8]} 2. Nf3 {[%clk 0:03:00]} 2...
d5 {[%clk 0:03:00.2]} 3. e3 {[%clk 0:03:00.1]} 3... Nf6 {[%clk 0:02:59.9]} 4.
Nc3 {[%clk 0:02:59.8]} 4... a6 {[%clk 0:02:56.3]} 5. b3 {[%clk 0:02:57.7]} 5...
c5 {[%clk 0:02:55.9]} 6. cxd5 {[%clk 0:02:55.4]} 6... exd5 {[%clk 0:02:56.8]} 7.
d4 {[%clk 0:02:55.6]} 7... Nc6 {[%clk 0:02:57.7]} 8. Bb2 {[%clk 0:02:54.7]} 8...
Bg4 {[%clk 0:02:48.7]} 9. Be2 {[%clk 0:02:46.5]} 9... Bxf3 {[%clk 0:02:48.4]}
10. Bxf3 {[%clk 0:02:46.6]} 10... cxd4 {[%clk 0:02:49.3]} 11. exd4 {[%clk
0:02:46.7]} 11... Bd6 {[%clk 0:02:49.9]} 12. O-O {[%clk 0:02:46.2]} 12... O-O
{[%clk 0:02:50.4]} 13. g3 {[%clk 0:02:43.1]} 13... Bc7 {[%clk 0:02:23.1]} 14.
Na4 {[%clk 0:02:34.7]} 14... Re8 {[%clk 0:02:19.4]} 15. Rc1 {[%clk 0:02:33.4]}
15... Bd6 {[%clk 0:02:16]} 16. Nc3 {[%clk 0:02:31.5]} 16... Bf8 {[%clk 0:02:14]}
17. Kg2 {[%clk 0:02:29.2]} 17... Rc8 {[%clk 0:02:13.4]} 18. Qd3 {[%clk
0:02:25.5]} 18... b5 {[%clk 0:02:12.6]} 19. Rfe1 {[%clk 0:02:21.3]} 19... Rxe1
{[%clk 0:02:11.4]} 20. Rxe1 {[%clk 0:02:21]} 20... Qd7 {[%clk 0:02:09.5]} 21.
Re2 {[%clk 0:02:13.1]} 21... Bb4 {[%clk 0:02:05.5]} 22. Nd1 {[%clk 0:02:10.9]}
22... Bf8 {[%clk 0:01:55.8]} 23. Ne3 {[%clk 0:02:08.6]} 23... Nb4 {[%clk
0:01:54]} 24. Qb1 {[%clk 0:02:05.1]} 24... g6 {[%clk 0:01:49.2]} 25. h3 {[%clk
0:01:49.1]} 25... h5 {[%clk 0:01:48.6]} 26. Ba3 {[%clk 0:01:36.5]} 26... Nc6
{[%clk 0:01:47]} 27. Bb2 {[%clk 0:01:36.3]} 27... Bg7 {[%clk 0:01:44.2]} 28. Qd1
{[%clk 0:01:32.6]} 28... Re8 {[%clk 0:01:40.8]} 29. Nxd5 {[%clk 0:01:27.3]}
29... Rxe2 {[%clk 0:01:13.6]} 30. Nxf6+ {[%clk 0:01:26.5]} 30... Bxf6 {[%clk
0:01:14.5]} 31. Qxe2 {[%clk 0:01:25]} 31... Bxd4 {[%clk 0:01:10.8]} 32. Qd1
{[%clk 0:01:10.1]} 32... Qd6 {[%clk 0:01:04.2]} 33. Bc1 {[%clk 0:01:10.1]} 33...
Ne7 {[%clk 0:01:00.4]} 34. Bf4 {[%clk 0:01:08.4]} 34... Qc5 {[%clk 0:00:59.7]}
35. Qe2 {[%clk 0:01:07]} 35... Kg7 {[%clk 0:00:56.9]} 36. h4 {[%clk 0:00:59.8]}
36... Bf6 {[%clk 0:00:54.7]} 37. Be3 {[%clk 0:00:58.9]} 37... Qc3 {[%clk
0:00:51.9]} 38. Qd2 {[%clk 0:00:58.3]} 38... Qc8 {[%clk 0:00:48.7]} 39. Qc1
{[%clk 0:00:44.2]} 39... Qe6 {[%clk 0:00:47.1]} 40. Bh6+ {[%clk 0:00:38.4]}
40... Kh7 {[%clk 0:00:46.9]} 41. Bf4 {[%clk 0:00:37.8]} 41... Nf5 {[%clk
0:00:45.6]} 42. Qc6 {[%clk 0:00:36.1]} 42... Qxc6 {[%clk 0:00:19.6]} 43. Bxc6
{[%clk 0:00:35.4]} 43... Bd4 {[%clk 0:00:15.9]} 44. Bc7 {[%clk 0:00:29.7]} 44...
Bc3 {[%clk 0:00:10.5]} 45. Bb7 {[%clk 0:00:21.8]} 45... a5 {[%clk 0:00:10.8]}
46. Ba6 {[%clk 0:00:21.8]} 46... Nd4 {[%clk 0:00:05.3]} 47. Be5 {[%clk
0:00:21.3]} 47... b4 {[%clk 0:00:05.5]} 48. Bc7 {[%clk 0:00:20.5]} 48... Nc2
{[%clk 0:00:04.2]} 49. Bxa5 {[%clk 0:00:18.2]} 49... Kg7 {[%clk 0:00:04.7]} 50.
Be2 {[%clk 0:00:16.8]} 50... Kf6 {[%clk 0:00:04.5]} 51. a4 {[%clk 0:00:16.2]}
51... Nd4 {[%clk 0:00:03.3]} 52. Bc4 {[%clk 0:00:16.1]} 52... Ke7 {[%clk
0:00:03]} 53. Bb6 {[%clk 0:00:15.6]} 53... Nc6 {[%clk 0:00:02.9]} 54. Bc5+
{[%clk 0:00:14.9]} 54... Ke8 {[%clk 0:00:02.5]} 55. Bb5 {[%clk 0:00:14.5]} 55...
Kd7 {[%clk 0:00:02.7]} 56. Kf3 {[%clk 0:00:14.3]} 56... Kc7 {[%clk 0:00:02.6]}
57. Bxc6 {[%clk 0:00:14.6]} 57... Kxc6 {[%clk 0:00:03.5]} 58. Be3 {[%clk
0:00:14.4]} 58... Kd5 {[%clk 0:00:03]} 59. Ke2 {[%clk 0:00:14.8]} 59... Be5
{[%clk 0:00:03]} 60. Kd3 {[%clk 0:00:13.6]} 60... Bc7 {[%clk 0:00:03.3]} 61. Bd2
{[%clk 0:00:12.4]} 61... Ba5 {[%clk 0:00:02.5]} 62. Ke3 {[%clk 0:00:12.1]} 62...
Bb6+ {[%clk 0:00:01.7]} 63. Kf3 {[%clk 0:00:11.9]} 63... Bc5 {[%clk 0:00:01.7]}
64. Be3 {[%clk 0:00:12.1]} 64... Bd6 {[%clk 0:00:01.7]} 65. a5 {[%clk
0:00:12.1]} 65... Kc6 {[%clk 0:00:02]} 66. a6 {[%clk 0:00:11.9]} 66... Bc7
{[%clk 0:00:01.8]} 67. Ke4 {[%clk 0:00:11.9]} 67... f5+ {[%clk 0:00:02.2]} 68.
Kd3 {[%clk 0:00:11.9]} 68... Be5 {[%clk 0:00:02.3]} 69. Kc4 {[%clk 0:00:11.5]}
69... Bc3 {[%clk 0:00:02.8]} 70. a7 {[%clk 0:00:09.6]} 70... Kb7 {[%clk
0:00:03.7]} 71. Kd5 {[%clk 0:00:09.9]} 71... f4 {[%clk 0:00:03.9]} 72. Bxf4
{[%clk 0:00:09.5]} 72... Be1 {[%clk 0:00:04]} 73. Be3 {[%clk 0:00:09.4]} 73...
Ka8 {[%clk 0:00:03.5]} 74. Ke6 {[%clk 0:00:09.5]} 74... Kb7 {[%clk 0:00:04]} 75.
Kf7 {[%clk 0:00:09.8]} 75... Bxf2 {[%clk 0:00:04.2]} 76. Bxf2 {[%clk 0:00:09.3]}
76... Ka8 {[%clk 0:00:05.1]} 77. Kxg6 {[%clk 0:00:09.6]} 77... Kb7 {[%clk
0:00:05.8]} 78. Kxh5 {[%clk 0:00:10]} 78... Ka6 {[%clk 0:00:06.2]} 79. g4 {[%clk
0:00:10.2]} 79... Kb7 {[%clk 0:00:07.1]} 80. g5 {[%clk 0:00:10.5]} 80... Ka8
{[%clk 0:00:08]} 81. g6 {[%clk 0:00:10.9]} 81... Kb7 {[%clk 0:00:08.9]} 82. g7
{[%clk 0:00:11.3]} 82... Ka6 {[%clk 0:00:09]} 83. g8=Q {[%clk 0:00:11.4]} 83...
Kb5 {[%clk 0:00:09.9]} 84. Qd5+ {[%clk 0:00:11.3]} 84... Ka6 {[%clk 0:00:09.7]}
85. Qc6+ {[%clk 0:00:11.6]} 85... Ka5 {[%clk 0:00:09.4]} 86. Qb6# {[%clk
0:00:11.9]} 1-0